Cogmind - Beta 15 @@@ ROGUE MODE // 2025.07.26 @ 15:20:29 Player: Isen Result: Destroyed by H-55 Commando with Gauss Rifle Performance ------------- Evolutions (2) 1000 Regions Visited (3) 600 Robots Destroyed (20) 100 Value Destroyed (594) 594 Prototype IDs (2) 40 Alien Tech Used (0) 0 Bonus (0) 0 TOTAL SCORE: 2334 Bonus ------- None Cogmind --------- Core Integrity 0/550 Matter 157/300 Energy 100/100 System Corruption 2% Temperature Cool (0) Movement Flying (35) Location -8/Materials Parts ------- > --- POWER (2) -------- (None) > --- PROPULSION (3) --- Cesium-ion Thruster > --- UTILITY (3) ------ Advanced Visual Processing Unit > --- WEAPON (3) ------- (None) > --- INVENTORY (5) ---- (None) Peak State ------------ > --- POWER ------------ Improved Ion Engine Improved Ion Engine > --- PROPULSION ------- Cesium-ion Thruster Cesium-ion Thruster Cesium-ion Thruster > --- UTILITY ---------- Advanced Visual Processing Unit Improved Medium Armor Plating Improved Medium Armor Plating > --- WEAPON ----------- Heavy Assault Rifle Improved Light Cannon Improved Light Cannon > --- INVENTORY -------- Hardened Light Armor Plating [Rating: 30] Favorites ----------- Power Ion Engine Engine Ion Engine Propulsion Aluminum Leg Leg Aluminum Leg Flight Unit Cesium-ion Thruster Utility Medium Armor Plating Storage Small Storage Unit Processor Advanced Visual Processing Unit Protection Medium Armor Plating Weapon Improved Light Cannon Ballistic Gun Light Assault Rifle Ballistic Cannon Improved Light Cannon Build | -11 -10 -9 -8 ------- Run | Yrd Mat Mat Mat Slots Evolved 4 | . . 2 2 Power 1 | . . . 1 Propulsion 1 | . . . 1 Utility 1 | . . 1 . Weapon 1 | . . 1 . Parts Attached 28 | 7 2 11 8 Power 3 | 1 . 1 1 Engine 3 | 1 . 1 1 Core . | . . . . Reactor . | . . . . Propulsion 8 | 2 . 3 3 Treads . | . . . . Leg 5 | 2 . 3 . Wheel . | . . . . Hover . | . . . . Flight 3 | . . . 3 Utility 10 | 1 2 4 3 Device . | . . . . Storage 1 | 1 . . . Processor 1 | . . 1 . Hackware . | . . . . Protection 8 | . 2 3 3 Artifact . | . . . . Weapon 7 | 3 . 3 1 Energy Gun . | . . . . Energy Cannon . | . . . . Ballistic Gun 4 | 3 . . 1 Ballistic Cannon 3 | . . 3 . Launcher . | . . . . Special Weapon . | . . . . Impact Weapon . | . . . . Slashing Weapon . | . . . . Piercing Weapon . | . . . . Special Melee Weapon . | . . . . Unidentified Prototypes . | . . . . Parts Lost 10 | . . 1 9 Power 2 | . . . 2 Propulsion 2 | . . . 2 Utility 3 | . . 1 2 Weapon 3 | . . . 3 Highest Loss Streak 5 | . . 1 5 To Critical Strikes . | . . . . Average Backups . | . . . . Power . | . . . . Propulsion . | . . . . Utility . | . . . . Weapon . | . . . . Tool/Special . | . . . . Unused Backups 8 | 4 3 1 . Power 1 | 1 . . . Propulsion 4 | 3 1 . . Utility 3 | . 2 1 . Weapon . | . . . . Tool/Special . | . . . . Average Slot Usage (%) 90 | . 92 95 77 Engine 12 | . 14 11 15 Leg 17 | . 28 22 2 Flight 4 | . . . 18 Processor 8 | . . 9 9 Protection 16 | . 15 19 11 Ballistic Gun 4 | . 28 . 5 Ballistic Cannon 24 | . . 32 14 Peak Build Rating 30 | 6 7 18 30 Average Rating 15 | 4 6 15 21 On Entrance 7 | . 6 7 18 Naked Turns . | . . . . Heaviest Build 39 | 12 13 34 39 Greatest Support 23 | 20 20 23 23 Greatest Overweight (x) 6 | 1 . 3 6 Average Overweight (x) . | . . . 1 Largest Inventory Capacity 8 | 8 8 5 5 Average Capacity 5 | 7 6 5 5 Most Carried 5 | 5 2 3 4 Average Carried . | . . . . Final Capacity 8 | 8 5 5 5 Final Carried 2 | . . 2 . Class Distribution -------------------- 72% | Tank 27% | Mutant Dominant Class ---------------- Mutant | -10/Materials Tank | -9/Materials Tank | -8/Materials Resources | -11 -10 -9 -8 ----------- Run | Yrd Mat Mat Mat Matter Collected 947 | 245 30 611 61 Remotely . | . . . . Salvage Created 417 | . 30 375 12 Parts 24 | . 2 20 2 Haulers Intercepted . | . . . . Recyclers Shooed . | . . . . Parts Field Recycled . | . . . . Retrieved Matter . | . . . . Parts Self-Destructed . | . . . . Prevented . | . . . . Kills | -11 -10 -9 -8 ------- Run | Yrd Mat Mat Mat Combat Hostiles Destroyed 15 | . 1 13 1 Guns 2 | . 1 . 1 Cannons 13 | . . 13 . Classes Destroyed 8 | . 1 6 1 Worker 1 | . . . 1 Recycler 1 | . . 1 . Operator 1 | . . 1 . Watcher 2 | . . 2 . Swarmer 3 | . . 3 . Grunt 8 | . 1 6 1 Brawler 1 | . . 1 . Sentry 3 | . . 3 . Best Kill Streak 3 | . 1 3 2 Combat Bots Only 2 | . 1 2 1 Max Kills in Single Turn 2 | . 1 2 2 Gunslinging . | . . . . Exploded . | . . . . Melee . | . . . . Uniques/NPCs Destroyed . | . . . . Combat | -11 -10 -9 -8 -------- Run | Yrd Mat Mat Mat Hostile Shots Fired 198 | . 8 77 113 Missed 58 | . 1 25 32 Hits 140 | . 7 52 81 Melee 1 | . . 1 . Projectile 139 | . 7 51 81 Critical Strikes 4 | . . . 4 Damage Taken 2179 | . 116 577 1486 Core 630 | . 12 66 552 Absorbed by Shields . | . . . . Core Remaining (%) 92 | 100 95 83 . Volleys Fired 73 | . 7 51 15 Largest 3 | . 2 3 3 Hottest 99 | . 40 99 89 Shots Fired 177 | . 14 122 41 Gun 25 | . 14 . 11 Cannon 152 | . . 122 30 Launcher . | . . . . Special . | . . . . Kinetic 177 | . 14 122 41 Thermal . | . . . . Explosive . | . . . . Electromagnetic . | . . . . Robot Hit Streak 7 | . 4 7 5 Robot Miss Streak 8 | . 1 8 4 Penetration Max . | . . . . Secondary Targets . | . . . . Shots Hit Robots 78 | . 9 55 14 Core Hits 27 | . 2 20 5 Critical Kills 1 | . . . 1 Critical Parts Destroyed . | . . . . Critical Strikes 3 | . . 2 1 Destroy 1 | . . . 1 Blast 2 | . . 2 . Melee Attacks . | . . . . Impact . | . . . . Slashing . | . . . . Piercing . | . . . . Sneak Attacks . | . . . . Combat Hostiles . | . . . . Follow-up Attacks . | . . . . Damage Inflicted 1762 | . 74 1324 364 Guns 146 | . 74 . 72 Cannons 1596 | . . 1324 272 Explosions . | . . . . Melee . | . . . . Ramming 20 | . . . 20 Kinetic 1742 | . 74 1324 344 Thermal . | . . . . Explosive . | . . . . Electromagnetic . | . . . . Impact . | . . . . Slashing . | . . . . Piercing . | . . . . Highest Corruption 2 | . . . 2 Average Corruption 1 | . . . 1 Corruption Purged . | . . . . Corruption Blocked . | . . . . Effects 5 | . . . 5 Message Errors 1 | . . . 1 Matter Fused 2 | . . . 2 Energy Discharges 2 | . . . 2 Overload Shots . | . . . . Overflow Damage 24 | . . 13 11 Projectiles 24 | . . 13 11 Explosions . | . . . . Melee . | . . . . Knockbacks 16 | . . 15 1 Impact 1 | . . . 1 Kinetic 15 | . . 15 . Secondary . | . . . . Self-Inflicted Damage 6 | . . . 6 Shots . | . . . . Rammed 15 | . . . 15 Targets Rammed 15 | . . . 15 Kicked . | . . . . Crushed . | . . . . Highest Temperature 585 | . 72 442 585 Average Temperature 175 | . 36 144 290 Received Heat Transfer 582 | . 42 180 360 Effects 23 | . . 7 16 Shutdowns 8 | . . 2 6 Energy Bleed 4 | . . . 4 Interference 2 | . . 2 . Matter Decay 2 | . . 1 1 Short Circuit 2 | . . . 2 Damage (minor) 3 | . . 2 1 Damage (core) 2 | . . . 2 Siege Activations . | . . . . Martial Activations . | . . . . Shielding Activations . | . . . . Robots Disrupted . | . . . . Combat Hostiles . | . . . . Robots Corrupted . | . . . . Combat Hostiles . | . . . . Parts Fried . | . . . . Impact Corruptions . | . . . . Robots Melted . | . . . . Combat Hostiles . | . . . . Parts Melted . | . . . . Heat Transferred . | . . . . Parts Sabotaged . | . . . . Parts Stolen . | . . . . Parts Stripped . | . . . . Power Chain Reactions . | . . . . Alert | -11 -10 -9 -8 ------- Run | Yrd Mat Mat Mat Maximum Alert Level . | . . . . Low Security (%) 100 | 100 100 100 100 Level 1 . | . . . . Level 2 . | . . . . Level 3 . | . . . . Level 4 . | . . . . Level 5 . | . . . . High Security . | . . . . Max Security . | . . . . Peak Influence 124 | . 30 124 40 Initial 25 | . . . 25 Average 28 | . 5 42 7 Influence Increases 487 | . 30 400 57 Destroy 0b10 Robot/C 300 | . 20 260 20 Destroy 0b10 Robot/NC 25 | . . 20 5 Destroy Leader 94 | . 10 84 . Disable Machine 60 | . . 30 30 Destroy Structure 8 | . . 6 2 Influence Decreases 487 | . 30 340 117 Entered New Map 35 | . . . 35 Time Decay 432 | . 30 330 72 Lost Part 20 | . . 10 10 Squads Dispatched 7 | . 3 3 1 Investigation 3 | . 1 1 1 Extermination . | . . . . Reinforcement 4 | . 2 2 . Assault . | . . . . Garrison . | . . . . Intercept . | . . . . Searches Triggered . | . . . . Construction Impeded . | . . . . Haulers Reinforced . | . . . . Active Scanning Responses . | . . . . Cargo Convoy Interrupts . | . . . . Stealth | -11 -10 -9 -8 --------- Run | Yrd Mat Mat Mat Distress Signals 4 | . 1 3 . Communications Jammed . | . . . . Distress Signals . | . . . . Times Spotted 34 | . 4 25 5 Peak Tracking Total 3 | . 3 3 3 Tactical Retreats . | . . . . Traps | -11 -10 -9 -8 ------- Run | Yrd Mat Mat Mat Traps Triggered 4 | . 3 1 . Indirectly . | . . . . Trap Hack Attempts . | . . . . Triggered . | . . . . Disarmed . | . . . . Reprogrammed . | . . . . Reused . | . . . . Traps Extracted . | . . . . Installed . | . . . . Triggered . | . . . . Machines | -11 -10 -9 -8 ---------- Run | Yrd Mat Mat Mat Machines Disabled 4 | . . 2 2 Max in Single Turn 1 | . . 1 1 Machines Repaired . | . . . . Machines Dismantled . | . . . . Machines Sabotaged . | . . . . Overloaded Fab Kills . | . . . . Hacking | -11 -10 -9 -8 --------- Run | Yrd Mat Mat Mat Machines Accessed 4 | . 1 1 2 Terminals 3 | . 1 . 2 Fabricators . | . . . . Repair Stations . | . . . . Recycling Units . | . . . . Scanalyzers 1 | . . 1 . Garrison Access . | . . . . Total Hacks 7 | . 1 2 4 Successful 7 | . 1 2 4 Failed . | . . . . Catastrophic . | . . . . Database Lockouts . | . . . . Manual . | . . . . Terminals 5 | . 1 . 4 Fabricators . | . . . . Repair Stations . | . . . . Recycling Units . | . . . . Scanalyzers 2 | . . 2 . Garrison Access . | . . . . Terminal Hacks 5 | . 1 . 4 Record 3 | . . . 3 Robot Analysis 1 | . . . 1 Prototype ID Bank 1 | . 1 . . Fabricator Hacks . | . . . . Repair Station Hacks . | . . . . Recycling Unit Hacks . | . . . . Scanalyzer 2 | . . 2 . Insert Component 1 | . . 1 . Analyze 1 | . . 1 . Garrison Access Hacks . | . . . . Unauthorized Hacks . | . . . . Terminals . | . . . . Fabricators . | . . . . Repair Stations . | . . . . Recycling Units . | . . . . Scanalyzers . | . . . . Garrison Access . | . . . . Data Cores Recovered . | . . . . Used . | . . . . Hacking Detections 3 | . 1 . 2 Full Trace Events 1 | . . . 1 Feedback Events 1 | . . . 1 Corruption 1 | . . . 1 Feedback Blocked . | . . . . Robot Schematics Acquired . | . . . . Robots Built . | . . . . Authchips . | . . . . Time . | . . . . Total Robot Build Rating . | . . . . Part Schematics Acquired 1 | . . 1 . Parts Built . | . . . . Authchips . | . . . . Time . | . . . . Total Part Build Rating . | . . . . Parts Repaired . | . . . . Time . | . . . . Parts Recycled . | . . . . Recycled Matter . | . . . . Retrieved Matter . | . . . . Retrieved Components . | . . . . Parts Scanalyzed 1 | . . 1 . Part Schematics Acquired 1 | . . 1 . Parts Damaged 1 | . . 1 . Bothacking | -11 -10 -9 -8 ------------ Run | Yrd Mat Mat Mat Used RIF Installer . | . . . . Robots Hacked . | . . . . Non-combat . | . . . . Combat . | . . . . Robot Hacks Applied . | . . . . Relay Couplers Released . | . . . . Fabnet Peak Effective % . | . . . . Robots Rewired . | . . . . Allies Hacked . | . . . . Hacks Repelled . | . . . . Allies | -11 -10 -9 -8 -------- Run | Yrd Mat Mat Mat Total Allies . | . . . . Largest Group . | . . . . Highest-Rated Group . | . . . . Highest-Rated Ally . | . . . . Total Orders . | . . . . Ally Attacks . | . . . . Total Damage . | . . . . Kills . | . . . . Allies Corrupted . | . . . . Allies Melted . | . . . . Intel | -11 -10 -9 -8 ------- Run | Yrd Mat Mat Mat Active Infowar (turns) 1461 | . . 1038 423 Optics 1461 | . . 1038 423 Robot Analysis Total 1 | . . . 1 Derelict Logs Recovered . | . . . . Drone Launches . | . . . . Drone Recoveries . | . . . . Exploration | -11 -10 -9 -8 ------------- Run | Yrd Mat Mat Mat Turns Passed 1890 | 112 201 1154 423 Spaces Moved 869 | 86 144 492 147 Core 25 | 25 . . . Treads . | . . . . Legs 716 | 61 144 492 19 Wheels . | . . . . Hover . | . . . . Flight 128 | . . . 128 Fastest Speed 50 | 50 120 120 109 Average Speed 165 | 107 120 189 164 Slowest Speed 515 | 120 120 330 515 Overloaded Moves . | . . . . Propulsion Burnouts . | . . . . Robots Hopped . | . . . . Potential Cave-ins . | . . . . Cave-ins Triggered . | . . . . Exploration Rate (%) 24 | 6 37 39 16 Regions Visited 3 Branch Regions . Pre-discovered Areas . | . . . . Known Exits Taken . | . . . . Unknown Exits Taken 3 | 1 1 1 . Scrap Searched . | . . . . Spaces Dug . | . . . . Terrain Destroyed 7 | . . 5 2 Melee . | . . . . Projectile 7 | . . 5 2 AOE . | . . . . Terrain Rammed . | . . . . Walls Destroyed . | . . . . Machines Disabled . | . . . . Actions | -11 -10 -9 -8 --------- Run | Yrd Mat Mat Mat Total 1152 | 108 163 606 275 Wait 100 | . 1 29 70 Move 866 | 85 143 491 147 Hop . | . . . . Pick Up 39 | 11 5 14 9 Fast Attach . | . . . . Attach 22 | 7 2 4 9 Detach 1 | . 1 . . Swap 9 | . . 8 1 Drop 27 | 5 4 9 9 Fire 73 | . 7 51 15 Melee . | . . . . Ram 15 | . . . 15 Kick . | . . . . Crush . | . . . . Escape Stasis . | . . . . Rewire . | . . . . Trap . | . . . . Miscellaneous . | . . . . Route ------- -11/Scrapyard -10/Materials (discovered 3 exits: *Mat x2 / [*Min]) -9/Materials (discovered 4 exits: *Mat / [*Min x2] / [*Sto]) -8/Materials History --------- Turn | Location | Event 25 | -11/Scrapyard | Discovered new exit (range 16) 113 | -11/Scrapyard | Entered Materials 185 | -10/Materials | Discovered new exit (range 13) 269 | -10/Materials | Discovered new exit (range 16) 302 | -10/Materials | Discovered new exit (range 11) 303 | -10/Materials | Build established: Mutant 314 | -10/Materials | Entered another Materials area 314 | -9/Materials | Evolved 2 slots: Utility x1, Weapon x1 372 | -9/Materials | Discovered new exit (range 15) 637 | -9/Materials | Build established: Tank 735 | -9/Materials | Discovered new exit (range 18) 1075 | -9/Materials | Discovered new exit (range 20) 1412 | -9/Materials | Discovered new exit (range 20) 1468 | -9/Materials | Entered another Materials area 1468 | -8/Materials | Evolved 2 slots: Power x1, Propulsion x1 1813 | -8/Materials | Lost 4 parts (1n1u2w) 1833 | -8/Materials | Core integrity fell below 50% 1863 | -8/Materials | Core integrity fell below 20% 1866 | -8/Materials | Lost 5 parts (2p1n1u1w) 1891 | -8/Materials | Destroyed by H-55 Commando with Gauss Rifle Last Messages --------------- (-159). 01823_ Penetrated by Slug. 01825_ K-01 Serf cleans the Atomic Centrifuge. 01826_ Penetrated by Slug. 01826_ Imp. Ion Engine destroyed. 01829_ Penetrated by Slug. 01835_ Imp. Medium Armor Plating destroyed. 01835_ Imp. Ion Engine destroyed. 01841_ Penetrated by Slug. 01859_ Slug penetrates Wall. 01862_ Penetrated by Slug. 01865_ Slug penetrates Wall. 01869_ Penetrated by Slug. 01875_ R-06 Scavenger collects Aluminum Leg. 01879_ R-06 Scavenger collects Lgt. Nuclear Core. 01880_ Slug penetrates Wall. 01883_ R-06 Scavenger collects Imp. Heat Sink. 01884_ System corrupted: Matter fused (-5). [Achievement: First Step to Greatness] Map ----- +----------------------------------------------------+ | ?# #????????????????? #???????????? | | ?##+##### #????????????????? #???????????? | | ????????## ##????????????????? +???????????? | | ?????????# #?????????????????? #???????????? | | ?????????# #?????????????????? #???????????? | | ?????????# #?????????????????? #???????????? | | ?????????# #?????????????????? #???????????? | | ?????????# #?????????????????? #???????????? | | ########## #?????????????????? #???????????? | | ################### ##??????????? | | ]! #??????????? | | == #??????????? | | ##+####### ############# #??????????? | | ?????????# ########????# #??????????? | | ?????????# # ###### ##??????????? | | ?????????# + """ ## # """ #???????????? | | ?????????# # "T" ## T # """ #???????????? | | ?????????# # ## # """ #???????????? | | ?????????# # ## *# #???????????? | | ?????????# # ##! # #???????????? | | ?????????# ######### # #???????????? | | ?????????# #???????? # ""#???????????? | | ??######## ##########+##] T"#?????? #??? | | ??# r " # #??? | | ??# h + #??? | | ??# @ #???????????? | | ??### #### ############ #???????????? | | ????# #??# #?????# ##??????????? | | ????# #??#! [[==#?????# #??????????? | | ????# #??#! [[==#?????# #??????????? | | ????# #??########?????# #??????????? | | ????# #???????????????# ########??????????? | | ????# #???????????????## #??????????????????? | | ????# #????????????????# ???????????????????? | | ????# #####????????????# ???????????????????? | | ????# #######??????# ???????????????????? | | ????# !! % %% %= ???????????????????? | | ????# % ! % ????????????????????? | | ????# % % %????????????????????? | | ????# ###/########## ????????????????????? | | ????## ##??? ???????# ?????????????????????? | | ????? #?????? #????????????????????????????? | | ????? #???????#????????????????????????????? | | ????? #????????????????????????????????????? | | ?????# #????????????????????????????????????? | | ?????# #????????????????????????????????????? | | ?????# #????????????????????????????????????? | | ?????? ????????????????????????????????????? | | ?????? ????????????????????????????????????? | | ?????? ????????????????????????????????????? | +----------------------------------------------------+ Best States ------------- Heat Dissipation 31 Energy Generation 19 Energy Capacity 430 Matter Stores 300 Matter Capacity 300 Sight Range 20 Terrain Scan Density 10 Armor Coverage 600 Evasion (%) 55 Item Schematics ----------------- Adv. Visual Processing Unit | -9/Materials | Scanalyzed Robot Schematics ------------------ None Fabricated ------------ Nothing Repaired ---------- Nothing Alien Tech Used ----------------- None Achievements -------------- First Step to Greatness Oops Storm Trooper Challenges ------------ None Game ------ Seed PitchforkFieldSteel Manual? 0 Play Time 00:35:53 Cumulative 0.5 hours Start 2025.07.26 @ 14:45:30 End 2025.07.26 @ 15:20:29 Sessions 1 Manual Loads 0 Difficulty Rogue Special Mode None Game No. 4 Rogue 4 Adventurer 0 Explorer 0 Win Type - Total 0 Types 0/0/0/0/0/0/0/0/0/0 Lore% 0 Gallery% 2 Achievement% 2 Wizard Run 0 Options --------- Layout 1 ASCII 0 Keyboard 0 Movement Numpad Keybinds 0 Fullscreen 1 Font 32/SmallcapsGlow Map View 50x40 Zoom Use 0% Tactical HUD 1 Map Filters NONE Filters NONE Steam 1 RUN: 4ca2d6bb-a769-4cbb-a21f-bc6b278a31c5